[Event "Niedersachsen-ch A 2024"]
[Site "Verden Aller"]
[Date "2024.01.07"]
[Round "7.13"]
[White "Harms, Friedjof"]
[Black "Trunz, Michelle"]
[Result "1/2-1/2"]
[ECO "B23"]
[WhiteElo "1844"]
[BlackElo "2023"]
[Annotator "RC"]
[PlyCount "55"]
[EventDate "2024.01.01"]
[EventType "swiss"]
[EventCountry "GER"]
[SourceTitle "playchess.com"]
[Source "ChessBase"]
[SourceQuality "1"]
[TimeControl "40/5400+30:1800+30"]

1. e4 {[%emt 0:00:03]} c5 {[%emt 0:00:06]} 2. Nc3 {[%emt 0:00:07]} Nc6 {[%emt 0:00:04]} 3. f4 {[%emt 0:00:13]} g6 {[%emt 0:00:04]} 4. Nf3 {[%emt 0:00:39]} Bg7 {[%emt 0:00:07]} 5. Bb5 {[%emt 0:00:28]} Nd4 {[%emt 0:00:04]} 6. O-O {[%emt 0:00:23]} Nxb5 {[%emt 0:00:06]} 7. Nxb5 {[%emt 0:00:09]} d5 {[%emt 0:00:17]} 8. exd5 {[%emt 0:01:00]} a6 {[%emt 0:00:07]} 9. Nc3 {[%emt 0:02:32]} Nf6 {[%emt 0:00:11]} 10. d4 {[%emt 0:12:17]} Nxd5 {[%emt 0:02:41]} 11. dxc5 {[%emt 0:03:50]} Nxc3 {[%emt 0:03:49]} 12. Qxd8+ {[%emt 0:00:46]} Kxd8 {[%emt 0:00:01]} 13. bxc3 {[%emt 0:00:28]} Bxc3 {[%emt 0:00:44]} 14. Rb1 {[%emt 0:00:41]} f6 {[%emt 0:02:43]} 15. Bb2 {[%emt 0:05:07]} Bxb2 {[%emt 0:00:49]} 16. Rxb2 {[%emt 0:02:34]} Kc7 {[%emt 0:04:37]} 17. c3 {[%emt 0:08:32]} Bd7 {[%emt 0:09:04]} 18. Re1 {[%emt 0:02:27]} Rhe8 {[%emt 0:09:15]} 19. Rbe2 {[%emt 0:02:10]} Kd8 {[%emt 0:03:39]} 20. Nd4 {[%emt 0:02:55]} Rc8 {[%emt 0:04:55]} 21. c6 {[%emt 0:19:20]} bxc6 {[%emt 0:02:05]} 22. Rd2 {[%emt 0:07:20]} Kc7 {[%emt 0:08:48]} 23. Rde2 {[%emt 0:01:45]} e6 {[%emt 0:10:36]} 24. Nxe6+ {[%emt 0:01:45]} Bxe6 {[%emt 0:00:45]} 25. Rxe6 {[%emt 0:00:14]} Kd7 {[%emt 0:00:21]} 26. Rxe8 {[%emt 0:00:23]} Rxe8 {[%emt 0:00:04]} 27. Rxe8 {[%emt 0:00:11]} Kxe8 {[%emt 0:00:01]} 28. Kf2 {[%emt 0:00:42]} 1/2-1/2

[Event "Niedersachsen-ch A 2024"]
[Site "Verden Aller"]
[Date "2024.01.07"]
[Round "7.14"]
[White "Nielsen, Lars Aaes"]
[Black "Heirich, Andreas"]
[Result "1-0"]
[ECO "B18"]
[WhiteElo "2202"]
[BlackElo "1925"]
[Annotator "RC"]
[PlyCount "141"]
[EventDate "2024.01.01"]
[EventType "swiss"]
[EventCountry "GER"]
[SourceTitle "playchess.com"]
[Source "ChessBase"]
[SourceQuality "1"]
[TimeControl "40/5400+30:1800+30"]

1. e4 {[%emt 0:00:04]} c6 {[%emt 0:00:08]} 2. d4 {[%emt 0:00:24]} d5 {[%emt 0:00:07]} 3. Nc3 {[%emt 0:00:44]} dxe4 {[%emt 0:00:16]} 4. Nxe4 {[%emt 0:00:09]} Bf5 {[%emt 0:00:02]} 5. Ng3 {[%emt 0:00:18]} Bg6 {[%emt 0:00:01]} 6. Nf3 {[%emt 0:00:10]} h6 {[%emt 0:00:37]} 7. Bd3 {[%emt 0:00:20]} Bxd3 {[%emt 0:00:30]} 8. Qxd3 {[%emt 0:00:03]} e6 {[%emt 0:00:20]} 9. O-O {[%emt 0:01:01]} Nf6 {[%emt 0:00:10]} 10. Bd2 {[%emt 0:04:31]} Bd6 {[%emt 0:05:13]} 11. Rad1 {[%emt 0:01:20]} O-O {[%emt 0:03:32]} 12. c4 {[%emt 0:00:05]} Qc7 {[%emt 0:03:57]} 13. Bc3 {[%emt 0:00:14]} Nbd7 {[%emt 0:00:34]} 14. Rfe1 {[%emt 0:05:40]} Rad8 {[%emt 0:02:14]} 15. Qc2 {[%emt 0:05:50]} Rfe8 {[%emt 0:00:56]} 16. Nf1 {[%emt 0:01:25]} Nf8 {[%emt 0:05:52]} 17. g3 {[%emt 0:01:38]} b5 {[%emt 0:09:43]} 18. c5 {[%emt 0:08:37]} Be7 {[%emt 0:00:30]} 19. Ne3 {[%emt 0:00:03]} Nd5 {[%emt 0:00:34]} 20. Nxd5 {[%emt 0:00:30]} Rxd5 {[%emt 0:00:57]} 21. a4 {[%emt 0:01:10]} a6 {[%emt 0:02:05]} 22. Ra1 {[%emt 0:04:10]} Qb7 {[%emt 0:00:46]} 23. b4 {[%emt 0:01:26]} Ra8 {[%emt 0:01:38]} 24. Ra3 {[%emt 0:00:27]} Bf6 {[%emt 0:06:45]} 25. Rea1 {[%emt 0:01:18]} Rc8 {[%emt 0:06:11]} 26. axb5 {[%emt 0:02:00]} axb5 {[%emt 0:01:26]} 27. Ra7 {[%emt 0:00:49]} Qb8 {[%emt 0:00:04]} 28. Qa2 {[%emt 0:05:40]} Rd7 {[%emt 0:02:18]} 29. Rxd7 {[%emt 0:05:34]} Nxd7 {[%emt 0:01:21]} 30. Qa7 {[%emt 0:00:04]} Qxa7 {[%emt 0:03:09]} 31. Rxa7 {[%emt 0:00:02]} Nf8 {[%emt 0:00:23]} 32. Nd2 {[%emt 0:00:16]} Ng6 {[%emt 0:00:13]} 33. Ne4 {[%emt 0:02:25]} Be7 {[%emt 0:05:02]} 34. f4 {[%emt 0:09:51]} f5 {[%emt 0:03:59]} 35. Nd2 {[%emt 0:00:09]} Bf6 {[%emt 0:00:19]} 36. Kf2 {[%emt 0:03:59]} Ne7 {[%emt 0:00:36]} 37. Ke2 {[%emt 0:04:32]} Kf8 {[%emt 0:07:05]} 38. h4 {[%emt 0:00:22]} g5 {[%emt 0:02:52]} 39. fxg5 {[%emt 0:08:43]} hxg5 {[%emt 0:02:17]} 40. hxg5 {[%emt 0:00:03]} Bxg5 {[%emt 0:00:07]} 41. Nf3 {[%emt 0:30:03]} Bf6 {[%emt 0:30:12]} 42. Bd2 {[%emt 0:00:21]} Ke8 {[%emt 0:04:11]} 43. Bg5 {[%emt 0:02:36]} Bxg5 {[%emt 0:18:09]} 44. Nxg5 {[%emt 0:00:11]} Nd5 {[%emt 0:00:10]} 45. Nxe6 {[%emt 0:00:25]} Nxb4 {[%emt 0:00:10]} 46. Ng7+ {[%emt 0:00:20]} Kf8 {[%emt 0:00:01]} 47. Nxf5 {[%emt 0:00:22]} Nd5 {[%emt 0:03:23]} 48. Rb7 {[%emt 0:00:50]} Re8+ {[%emt 0:00:00]} 49. Kf3 {[%emt 0:00:00]} Re1 {[%emt 0:00:00]} 50. Kg4 {[%emt 0:00:00]} Ne3+ {[%emt 0:00:00]} 51. Kg5 {[%emt 0:00:00]} Nxf5 {[%emt 0:00:00]} 52. Kxf5 {[%emt 0:00:00]} Rd1 {[%emt 0:00:00]} 53. Ke5 {[%emt 0:00:00]} Rg1 {[%emt 0:00:00]} 54. Kd6 {[%emt 0:00:00]} Rd1 {[%emt 0:00:00]} 55. Kxc6 {[%emt 0:00:00]} Rxd4 {[%emt 0:00:00]} 56. Rxb5 {[%emt 0:00:00]} Ke8 {[%emt 0:00:00]} 57. Rb8+ {[%emt 0:00:00]} Ke7 {[%emt 0:00:00]} 58. Rg8 {[%emt 0:00:00]} Kf7 {[%emt 0:00:00]} 59. Rg5 {[%emt 0:00:00]} Ke6 {[%emt 0:00:00]} 60. Rg6+ {[%emt 0:00:00]} Ke7 {[%emt 0:00:00]} 61. Rd6 {[%emt 0:00:00]} Rg4 {[%emt 0:00:00]} 62. Rd3 {[%emt 0:00:00]} Rb4 {[%emt 0:00:00]} 63. Kc7 {[%emt 0:00:00]} Re4 {[%emt 0:00:00]} 64. c6 {[%emt 0:00:00]} Rb4 {[%emt 0:00:00]} 65. Re3+ {[%emt 0:00:00]} Kf7 {[%emt 0:00:00]} 66. Kc8 {[%emt 0:00:00]} Rc4 {[%emt 0:00:00]} 67. c7 {[%emt 0:00:00]} Rb4 {[%emt 0:00:00]} 68. Kd7 {[%emt 0:00:00]} Rd4+ {[%emt 0:00:00]} 69. Kc6 {[%emt 0:00:00]} Rc4+ {[%emt 0:00:00]} 70. Kd6 {[%emt 0:00:00]} Kf8 {[%emt 0:00:00]} 71. Re5 {[%emt 0:00:00]} 1-0

[Event "Niedersachsen-ch A 2024"]
[Site "Verden Aller"]
[Date "2024.01.07"]
[Round "7.15"]
[White "Bulygin, Anton"]
[Black "ter Stal, Lars"]
[Result "1-0"]
[ECO "A36"]
[WhiteElo "2040"]
[BlackElo "1770"]
[Annotator "NA RC"]
[PlyCount "83"]
[EventDate "2024.01.01"]
[EventType "swiss"]
[EventCountry "GER"]
[SourceTitle "playchess.com"]
[Source "ChessBase"]
[SourceQuality "1"]
[TimeControl "40/5400+30:1800+30"]

1. e4 {[%emt 0:00:03]} c5 {[%emt 0:00:06]} 2. c4 {[%emt 0:00:06]} Nc6 {[%emt 0:01:22]} 3. Nc3 {[%emt 0:04:25]} g6 {[%emt 0:03:19]} 4. g3 {[%emt 0:00:08]} Bg7 {[%emt 0:00:05]} 5. Bg2 {[%emt 0:00:06]} d6 {[%emt 0:01:58]} 6. h3 {[%emt 0:00:16]} e6 {[%emt 0:04:27]} 7. Nge2 {[%emt 0:00:09]} Nge7 {[%emt 0:00:12]} 8. d3 {[%emt 0:00:07]} Nd4 {[%emt 0:01:30]} 9. O-O {[%emt 0:00:18]} Nec6 {[%emt 0:03:03]} 10. Be3 {[%emt 0:00:43]} O-O {[%emt 0:00:39]} 11. Qd2 {[%emt 0:00:12]} Bd7 {[%emt 0:10:12]} 12. Bh6 {[%emt 0:00:34]} Rb8 {[%emt 0:02:53]} 13. Bxg7 {[%emt 0:00:14]} Kxg7 {[%emt 0:00:09]} 14. Nxd4 {[%emt 0:00:14]} cxd4 {[%emt 0:03:26]} 15. Ne2 {[%emt 0:00:23]} e5 {[%emt 0:00:28]} 16. f4 {[%emt 0:00:11]} f5 {[%emt 0:01:16]} 17. exf5 {[%emt 0:00:21]} Bxf5 {[%emt 0:08:57]} 18. g4 {[%emt 0:01:24]} Bd7 {[%emt 0:02:24]} 19. Ng3 {[%emt 0:00:12]} Qe7 {[%emt 0:03:10]} 20. Ne4 {[%emt 0:01:27]} Kh8 {[%emt 0:02:28]} 21. Rf2 {[%emt 0:00:12]} b5 {[%emt 0:01:15]} 22. b3 {[%emt 0:00:13]} bxc4 {[%emt 0:00:06]} 23. bxc4 {[%emt 0:00:05]} Nb4 {[%emt 0:01:33]} 24. a3 {[%emt 0:02:09]} Na6 {[%emt 0:00:32]} 25. Raf1 {[%emt 0:00:36]} Nc5 {[%emt 0:01:28]} 26. f5 {[%emt 0:00:22]} gxf5 {[%emt 0:02:12]} 27. gxf5 {[%emt 0:00:40]} Nxe4 {[%emt 0:00:06]} 28. Bxe4 {[%emt 0:00:10]} Qh4 {[%emt 0:03:44]} 29. Kh2 {[%emt 0:00:30]} Rg8 {[%emt 0:00:19]} 30. Rg2 {[%emt 0:00:09]} Rxg2+ {[%emt 0:00:38]} 31. Qxg2 {[%emt 0:00:08]} Rg8 {[%emt 0:00:26]} 32. Qf3 {[%emt 0:00:48]} Be8 {[%emt 0:01:29]} 33. Qf2 {[%emt 0:01:53]} Qxf2+ {[%emt 0:00:58]} 34. Rxf2 {[%emt 0:00:07]} Rf8 {[%emt 0:02:26]} 35. Rg2 {[%emt 0:02:25]} Rg8 {[%emt 0:00:26]} 36. Rb2 {[%emt 0:00:15]} Kg7 {[%emt 0:01:12]} 37. Rb7+ {[%emt 0:00:06]} Kf6 {[%emt 0:00:32]} 38. Rxh7 {[%emt 0:00:19]} Kg5 {[%emt 0:00:14]} 39. Kg3 {[%emt 0:00:30]} Ba4 {[%emt 0:01:21]} 40. Rxa7 {[%emt 0:04:29]} Bd1 {[%emt 0:01:15]} 41. Rd7 {[%emt 0:30:29]} Ra8 {[%emt 0:30:24]} 42. Bxa8 {[%emt 0:00:09]} 1-0

[Event "Niedersachsen-ch A 2024"]
[Site "Verden Aller"]
[Date "2024.01.07"]
[Round "7.16"]
[White "Aden, Dagmar"]
[Black "Miljkovic, Jovana"]
[Result "0-1"]
[ECO "B50"]
[WhiteElo "1766"]
[BlackElo "2035"]
[Annotator "RC"]
[PlyCount "88"]
[EventDate "2024.01.01"]
[EventType "swiss"]
[EventCountry "GER"]
[SourceTitle "playchess.com"]
[Source "ChessBase"]
[SourceQuality "1"]
[TimeControl "40/5400+30:1800+30"]

1. Nf3 {[%emt 0:00:04]} c5 {[%emt 0:00:06]} 2. e4 {[%emt 0:00:13]} d6 {[%emt 0:00:07]} 3. c3 {[%emt 0:00:24]} Nf6 {[%emt 0:00:23]} 4. d3 {[%emt 0:01:00]} Nc6 {[%emt 0:00:49]} 5. Be2 {[%emt 0:00:25]} e5 {[%emt 0:02:48]} 6. Bg5 {[%emt 0:01:24]} Be7 {[%emt 0:01:08]} 7. Na3 {[%emt 0:01:04]} d5 {[%emt 0:03:43]} 8. Bxf6 {[%emt 0:02:24]} Bxf6 {[%emt 0:00:20]} 9. O-O {[%emt 0:00:28]} O-O {[%emt 0:01:44]} 10. Nc2 {[%emt 0:00:34]} d4 {[%emt 0:02:15]} 11. c4 {[%emt 0:01:33]} Be6 {[%emt 0:02:44]} 12. Nfe1 {[%emt 0:02:10]} Qd7 {[%emt 0:03:38]} 13. f4 {[%emt 0:01:16]} exf4 {[%emt 0:01:26]} 14. Rxf4 {[%emt 0:00:14]} Be5 {[%emt 0:04:38]} 15. Rf1 {[%emt 0:00:39]} a6 {[%emt 0:04:42]} 16. Nf3 {[%emt 0:02:08]} Bf6 {[%emt 0:01:11]} 17. Qd2 {[%emt 0:04:18]} Qc7 {[%emt 0:05:15]} 18. b4 {[%emt 0:09:48]} b6 {[%emt 0:12:35]} 19. bxc5 {[%emt 0:01:20]} bxc5 {[%emt 0:00:07]} 20. Rab1 {[%emt 0:03:47]} Rab8 {[%emt 0:00:33]} 21. Ng5 {[%emt 0:04:44]} Be5 {[%emt 0:05:06]} 22. Nf3 {[%emt 0:05:02]} Bf4 {[%emt 0:03:05]} 23. Qe1 {[%emt 0:00:36]} Rxb1 {[%emt 0:01:04]} 24. Qxb1 {[%emt 0:00:08]} Rb8 {[%emt 0:01:35]} 25. Qa1 {[%emt 0:06:25]} Nb4 {[%emt 0:02:19]} 26. Nxb4 {[%emt 0:01:16]} Rxb4 {[%emt 0:00:16]} 27. Rb1 {[%emt 0:01:30]} Rxb1+ {[%emt 0:08:41]} 28. Qxb1 {[%emt 0:00:12]} Bg4 {[%emt 0:02:04]} 29. h3 {[%emt 0:01:24]} Be3+ {[%emt 0:04:43]} 30. Kf1 {[%emt 0:04:04]} Bxh3 {[%emt 0:02:45]} 31. Ng1 {[%emt 0:02:34]} Be6 {[%emt 0:02:29]} 32. Nf3 {[%emt 0:02:57]} h6 {[%emt 0:01:27]} 33. Qe1 {[%emt 0:03:25]} Qb8 {[%emt 0:02:15]} 34. Bd1 {[%emt 0:00:59]} Qb1 {[%emt 0:01:33]} 35. Qe2 {[%emt 0:01:06]} Bg4 {[%emt 0:01:43]} 36. Qc2 {[%emt 0:01:32]} Qb8 {[%emt 0:01:20]} 37. Qe2 {[%emt 0:03:45]} h5 {[%emt 0:01:03]} 38. Qe1 {[%emt 0:00:37]} Qb1 {[%emt 0:02:44]} 39. Qe2 {[%emt 0:00:37]} g5 {[%emt 0:01:35]} 40. Qc2 {[%emt 0:00:42]} Qb8 {[%emt 0:00:56]} 41. Qe2 {[%emt 0:35:21]} h4 {[%emt 0:30:46]} 42. Qe1 {[%emt 0:00:54]} h3 {[%emt 0:03:49]} 43. gxh3 {[%emt 0:00:29]} Bxh3+ {[%emt 0:00:43]} 44. Ke2 {[%emt 0:00:12]} Qb2+ {[%emt 0:08:17]} 0-1

[Event "Niedersachsen-ch A 2024"]
[Site "Verden Aller"]
[Date "2024.01.07"]
[Round "7.17"]
[White "Monnerjahn, Lukas"]
[Black "Weigand, Anton"]
[Result "0-1"]
[ECO "E05"]
[WhiteElo "1856"]
[BlackElo "2013"]
[Annotator "NA RC"]
[PlyCount "50"]
[EventDate "2024.01.01"]
[EventType "swiss"]
[EventCountry "GER"]
[SourceTitle "playchess.com"]
[Source "ChessBase"]
[SourceQuality "1"]
[TimeControl "40/5400+30:1800+30"]

1. d4 {[%emt 0:00:03]} d5 {[%emt 0:00:07]} 2. c4 {[%emt 0:00:04]} e6 {[%emt 0:00:33]} 3. Nf3 {[%emt 0:00:07]} Nf6 {[%emt 0:00:07]} 4. g3 {[%emt 0:00:04]} Be7 {[%emt 0:00:07]} 5. Bg2 {[%emt 0:00:03]} O-O {[%emt 0:00:06]} 6. O-O {[%emt 0:00:03]} dxc4 {[%emt 0:00:05]} 7. Qc2 {[%emt 0:00:04]} b6 {[%emt 0:00:10]} 8. Ne5 {[%emt 0:05:27]} Qxd4 {[%emt 0:00:14]} 9. Bxa8 {[%emt 0:00:07]} Qxe5 {[%emt 0:00:04]} 10. Bf4 {[%emt 0:03:43]} Qh5 {[%emt 0:00:27]} 11. Bg2 {[%emt 0:03:09]} e5 {[%emt 0:10:08]} 12. Bc1 {[%emt 0:03:19]} Be6 {[%emt 0:04:50]} 13. b3 {[%emt 0:04:26]} Na6 {[%emt 0:06:16]} 14. bxc4 {[%emt 0:02:48]} Nb4 {[%emt 0:04:33]} 15. Qb2 {[%emt 0:05:00]} Bxc4 {[%emt 0:03:55]} 16. Nc3 {[%emt 0:00:25]} Rd8 {[%emt 0:04:24]} 17. h3 {[%emt 0:05:09]} Bc5 {[%emt 0:07:55]} 18. Be3 {[%emt 0:03:48]} Be7 {[%emt 0:08:56]} 19. Rfd1 {[%emt 0:01:52]} Nbd5 {[%emt 0:02:03]} 20. Nxd5 {[%emt 0:01:02]} Nxd5 {[%emt 0:04:26]} 21. g4 {[%emt 0:01:48]} Qg6 {[%emt 0:02:45]} 22. Qxe5 {[%emt 0:08:50]} Bf6 {[%emt 0:06:52]} 23. Qg3 {[%emt 0:16:48]} Bxa1 {[%emt 0:01:30]} 24. Rxa1 {[%emt 0:34:21]} Nxe3 {[%emt 0:03:05]} 25. Qxe3 {[%emt 0:00:00]} Qe6 {[%emt 0:29:22]} 0-1

[Event "Niedersachsen-ch A 2024"]
[Site "Verden Aller"]
[Date "2024.01.07"]
[Round "7.18"]
[White "Burnus, Finn Crispin"]
[Black "Stoy, Ulf"]
[Result "1/2-1/2"]
[ECO "A42"]
[WhiteElo "1655"]
[BlackElo "1985"]
[Annotator "RC"]
[PlyCount "84"]
[EventDate "2024.01.01"]
[EventType "swiss"]
[EventCountry "GER"]
[SourceTitle "playchess.com"]
[Source "ChessBase"]
[SourceQuality "1"]
[TimeControl "40/5400+30:1800+30"]

1. d4 {[%emt 0:00:05]} g6 {[%emt 0:00:16]} 2. c4 {[%emt 0:00:07]} Bg7 {[%emt 0:00:04]} 3. Nc3 {[%emt 0:00:08]} d6 {[%emt 0:00:30]} 4. e4 {[%emt 0:00:33]} Nc6 {[%emt 0:00:30]} 5. Be3 {[%emt 0:00:55]} e5 {[%emt 0:00:28]} 6. d5 {[%emt 0:04:38]} Nd4 {[%emt 0:01:01]} 7. Nge2 {[%emt 0:00:09]} c5 {[%emt 0:03:41]} 8. dxc6 {[%emt 0:00:57]} bxc6 {[%emt 0:00:45]} 9. Nxd4 {[%emt 0:00:11]} exd4 {[%emt 0:00:08]} 10. Bxd4 {[%emt 0:00:05]} Nf6 {[%emt 0:00:49]} 11. Be2 {[%emt 0:01:02]} O-O {[%emt 0:02:02]} 12. O-O {[%emt 0:01:04]} Rb8 {[%emt 0:00:27]} 13. b3 {[%emt 0:01:05]} c5 {[%emt 0:02:37]} 14. Bxf6 {[%emt 0:00:54]} Bxf6 {[%emt 0:01:54]} 15. Rc1 {[%emt 0:00:23]} a6 {[%emt 0:13:06]} 16. Qd2 {[%emt 0:04:46]} Bb7 {[%emt 0:02:49]} 17. Nd5 {[%emt 0:04:22]} Bd4 {[%emt 0:06:35]} 18. Bd3 {[%emt 0:08:29]} Bxd5 {[%emt 0:12:22]} 19. cxd5 {[%emt 0:00:41]} Qh4 {[%emt 0:01:22]} 20. g3 {[%emt 0:00:47]} Qh3 {[%emt 0:01:41]} 21. Kh1 {[%emt 0:17:31]} Rfe8 {[%emt 0:16:43]} 22. Rfe1 {[%emt 0:08:31]} a5 {[%emt 0:14:43]} 23. f4 {[%emt 0:14:56]} Rb4 {[%emt 0:05:15]} 24. Bc4 {[%emt 0:00:57]} a4 {[%emt 0:03:33]} 25. Re2 {[%emt 0:03:45]} axb3 {[%emt 0:01:20]} 26. axb3 {[%emt 0:01:04]} f6 {[%emt 0:02:07]} 27. Qa2 {[%emt 0:04:13]} Qd7 {[%emt 0:02:40]} 28. Qa6 {[%emt 0:04:09]} Rbb8 {[%emt 0:00:38]} 29. Kg2 {[%emt 0:03:41]} Kg7 {[%emt 0:01:16]} 30. Rcc2 {[%emt 0:01:15]} Rec8 {[%emt 0:00:31]} 31. Ra2 {[%emt 0:01:06]} Rc7 {[%emt 0:00:48]} 32. Ra4 {[%emt 0:02:03]} Rbb7 {[%emt 0:00:44]} 33. Rea2 {[%emt 0:00:40]} Qe7 {[%emt 0:00:20]} 34. Kf3 {[%emt 0:02:12]} h5 {[%emt 0:00:09]} 35. R4a3 {[%emt 0:01:02]} Qd7 {[%emt 0:00:31]} 36. Ra5 {[%emt 0:01:42]} Qg4+ {[%emt 0:01:47]} 37. Kg2 {[%emt 0:00:09]} h4 {[%emt 0:00:37]} 38. Be2 {[%emt 0:01:14]} h3+ {[%emt 0:00:26]} 39. Kf1 {[%emt 0:00:21]} Qd7 {[%emt 0:00:34]} 40. Qc4 {[%emt 0:01:14]} Qe7 {[%emt 0:01:50]} 41. Bf3 {[%emt 0:33:09]} Rb4 {[%emt 0:03:00]} 42. Qd3 {[%emt 0:00:00]} Rcb7 {[%emt 0:00:52]} 1/2-1/2

[Event "Niedersachsen-ch A 2024"]
[Site "Verden Aller"]
[Date "2024.01.07"]
[Round "7.19"]
[White "Kiesel, Harald"]
[Black "Moeller, Jonas"]
[Result "0-1"]
[ECO "C54"]
[WhiteElo "1975"]
[BlackElo "1836"]
[Annotator "RC"]
[PlyCount "56"]
[EventDate "2024.01.01"]
[EventType "swiss"]
[EventCountry "GER"]
[SourceTitle "playchess.com"]
[Source "ChessBase"]
[SourceQuality "1"]
[TimeControl "40/5400+30:1800+30"]

1. e4 {[%emt 0:00:01]} e5 {[%emt 0:00:02]} 2. Nf3 {[%emt 0:00:07]} Nc6 {[%emt 0:00:02]} 3. Bc4 {[%emt 0:00:09]} Bc5 {[%emt 0:00:04]} 4. O-O {[%emt 0:00:07]} Nf6 {[%emt 0:00:07]} 5. d3 {[%emt 0:00:05]} O-O {[%emt 0:00:07]} 6. a4 {[%emt 0:00:16]} a6 {[%emt 0:01:10]} 7. Nbd2 {[%emt 0:00:15]} Ba7 {[%emt 0:07:02]} 8. h3 {[%emt 0:00:15]} d6 {[%emt 0:01:21]} 9. c3 {[%emt 0:00:42]} Ne7 {[%emt 0:05:12]} 10. Re1 {[%emt 0:05:09]} Ng6 {[%emt 0:01:44]} 11. Nf1 {[%emt 0:00:55]} c6 {[%emt 0:04:54]} 12. Bb3 {[%emt 0:05:55]} Be6 {[%emt 0:08:16]} 13. Bxe6 {[%emt 0:06:20]} fxe6 {[%emt 0:00:21]} 14. Be3 {[%emt 0:01:39]} Nh5 {[%emt 0:16:23]} 15. Bxa7 {[%emt 0:19:03]} Rxa7 {[%emt 0:00:05]} 16. g3 {[%emt 0:01:33]} Qf6 {[%emt 0:09:20]} 17. N1d2 {[%emt 0:14:06]} Raa8 {[%emt 0:23:04]} 18. Kh2 {[%emt 0:03:10]} Rf7 {[%emt 0:02:43]} 19. Rf1 {[%emt 0:05:08]} Raf8 {[%emt 0:02:21]} 20. Qe2 {[%emt 0:04:23]} Qe7 {[%emt 0:05:12]} 21. Rad1 {[%emt 0:03:11]} h6 {[%emt 0:01:26]} 22. a5 {[%emt 0:01:42]} Nf6 {[%emt 0:00:32]} 23. Rde1 {[%emt 0:03:56]} Nh7 {[%emt 0:01:28]} 24. b4 {[%emt 0:02:25]} Ng5 {[%emt 0:00:21]} 25. Nxg5 {[%emt 0:00:37]} Qxg5 {[%emt 0:00:07]} 26. c4 {[%emt 0:04:50]} h5 {[%emt 0:01:05]} 27. Qe3 {[%emt 0:03:04]} Qxe3 {[%emt 0:03:55]} 28. fxe3 {[%emt 0:00:10]} Rf2+ {[%emt 0:00:29]} 0-1

[Event "Niedersachsen-ch A 2024"]
[Site "Verden Aller"]
[Date "2024.01.07"]
[Round "7.20"]
[White "Ehlert, Horst"]
[Black "Moeller, Tom"]
[Result "1-0"]
[ECO "D00"]
[WhiteElo "1940"]
[BlackElo "1677"]
[Annotator "RC"]
[PlyCount "55"]
[EventDate "2024.01.01"]
[EventType "swiss"]
[EventCountry "GER"]
[SourceTitle "playchess.com"]
[Source "ChessBase"]
[SourceQuality "1"]
[TimeControl "40/5400+30:1800+30"]

1. d4 {[%emt 0:03:22]} d5 {[%emt 0:00:04]} 2. Nf3 {[%emt 0:01:09]} c6 {[%emt 0:00:11]} 3. Bg5 {[%emt 0:01:37]} f6 {[%emt 0:07:11]} 4. Bf4 {[%emt 0:02:17]} Bg4 {[%emt 0:00:09]} 5. Nbd2 {[%emt 0:03:17]} Bxf3 {[%emt 0:00:58]} 6. Nxf3 {[%emt 0:01:14]} f5 {[%emt 0:00:06]} 7. e3 {[%emt 0:02:15]} Nf6 {[%emt 0:01:33]} 8. Bd3 {[%emt 0:01:36]} Ne4 {[%emt 0:02:24]} 9. Ne5 {[%emt 0:07:24]} g6 {[%emt 0:06:22]} 10. Bxe4 {[%emt 0:09:53]} fxe4 {[%emt 0:04:56]} 11. h4 {[%emt 0:09:23]} Nd7 {[%emt 0:07:13]} 12. h5 {[%emt 0:09:25]} Nxe5 {[%emt 0:03:05]} 13. Bxe5 {[%emt 0:00:46]} Rg8 {[%emt 0:00:07]} 14. hxg6 {[%emt 0:04:14]} hxg6 {[%emt 0:00:06]} 15. Qg4 {[%emt 0:01:42]} Qd7 {[%emt 0:02:06]} 16. Qg3 {[%emt 0:02:10]} O-O-O {[%emt 0:01:27]} 17. Rh7 {[%emt 0:03:13]} b6 {[%emt 0:14:29]} 18. O-O-O {[%emt 0:00:49]} Qe8 {[%emt 0:02:52]} 19. Qg4+ {[%emt 0:02:42]} Qd7 {[%emt 0:04:04]} 20. Qg3 {[%emt 0:00:01]} Qe8 {[%emt 0:04:04]} 21. f3 {[%emt 0:03:48]} exf3 {[%emt 0:02:14]} 22. Qxf3 {[%emt 0:03:44]} Rd7 {[%emt 0:03:15]} 23. Rf1 {[%emt 0:02:27]} e6 {[%emt 0:02:45]} 24. Rxd7 {[%emt 0:00:18]} Kxd7 {[%emt 0:00:35]} 25. Qe2 {[%emt 0:06:52]} Bh6 {[%emt 0:03:21]} 26. Qa6 {[%emt 0:01:15]} Bxe3+ {[%emt 0:14:23]} 27. Kb1 {[%emt 0:00:22]} Qd8 {[%emt 0:02:14]} 28. Qb7+ {[%emt 0:00:47]} 1-0